Cogmind - Beta 11.1 @@@ ROGUE MODE // 2022.06.19 @ 10:14:08 Player: ktur Result: Destroyed by D-53 Grenadier with Mini Grenade Launcher Performance ------------- Evolutions (0) 0 Regions Visited (2) 400 Robots Destroyed (15) 75 Value Destroyed (421) 421 Prototype IDs (3) 60 Alien Tech Used (0) 0 Bonus (0) 0 TOTAL SCORE: 956 Bonus ------- None Cogmind --------- Core Integrity 0/250 Matter 294/300 Energy 91/100 System Corruption 0% Temperature Cool (0) Movement Treading (240) Ox1 Location -10/Mines Parts ------- > --- POWER (1) -------- (None) > --- PROPULSION (2) --- Light Treads > --- UTILITY (2) ------ Large Storage Unit Targeting Computer > --- WEAPON (2) ------- Beam Rifle Assault Rifle > --- INVENTORY (15) --- Improved Ion Engine Light Treads Improved Treads Improved Treads Improved Treads Improved Treads Cooling System Cooling System Light Armor Plating Medium Laser Medium Laser Rocket Launcher Rocket Launcher Rocket Launcher Rocket Launcher Peak State ------------ > --- POWER ------------ Ion Engine > --- PROPULSION ------- Light Treads Light Treads > --- UTILITY ---------- Large Storage Unit Targeting Computer > --- WEAPON ----------- Medium Laser Rocket Launcher > --- INVENTORY -------- Light Ion Engine Light Treads Light Treads Improved Treads Improved Treads Improved Treads Improved Treads Cooling System Cooling System Medium Laser Medium Laser Assault Rifle Rocket Launcher Rocket Launcher Rocket Launcher [Rating: 10] Favorites ----------- Power Ion Engine Engine Ion Engine Propulsion Light Treads Treads Light Treads Utility Targeting Computer Storage Large Storage Unit Processor Targeting Computer Weapon Assault Rifle Energy Gun Medium Laser Ballistic Gun Assault Rifle Launcher Rocket Launcher Build | -11 -10 -10 ------- Run | Scr Mat Min Slots Evolved . | . . . Power . | . . . Propulsion . | . . . Utility . | . . . Weapon . | . . . Parts Attached 23 | 6 13 4 Power 3 | 1 2 . Engine 3 | 1 2 . Core . | . . . Reactor . | . . . Propulsion 9 | 2 4 3 Treads 9 | 2 4 3 Leg . | . . . Wheel . | . . . Hover . | . . . Flight . | . . . Utility 3 | 1 2 . Device . | . . . Storage 2 | 1 1 . Processor 1 | . 1 . Hackware . | . . . Protection . | . . . Artifact . | . . . Weapon 8 | 2 5 1 Energy Gun 3 | . 2 1 Energy Cannon . | . . . Ballistic Gun 4 | 2 2 . Ballistic Cannon . | . . . Launcher 1 | . 1 . Special Weapon . | . . . Impact Weapon . | . . . Slashing Weapon . | . . . Piercing Weapon . | . . . Special Melee Weapon . | . . . Unidentified Prototypes . | . . . Parts Lost 2 | . . 2 Power 1 | . . 1 Propulsion 1 | . . 1 Utility . | . . . Weapon . | . . . Highest Loss Streak 2 | . . 2 To Critical Strikes . | . . . Average Slot Usage (%) 98 | . 98 100 Engine 13 | . 13 14 Treads 28 | . 28 28 Storage 14 | . 14 14 Processor 13 | . 13 14 Energy Gun 11 | . 10 14 Ballistic Gun 15 | . 16 14 Naked Turns . | . . . Heaviest Build 30 | 11 29 30 Greatest Support 40 | 40 40 40 Greatest Overweight (x) . | . . . Average Overweight (x) . | . . . Largest Inventory Capacity 15 | 8 15 15 Average Capacity 14 | 7 14 15 Most Carried 15 | 8 15 15 Average Carried 13 | 4 13 14 Final Capacity 15 | 8 15 15 Final Carried 15 | 6 15 15 Class Distribution -------------------- 100% | Mutant Dominant Class ---------------- Mutant | -10/Materials Mutant | -10/Mines Resources | -11 -10 -10 ----------- Run | Scr Mat Min Matter Collected 573 | 210 287 76 Remotely . | . . . Salvage Created 558 | . 430 128 Parts 34 | . 26 8 Haulers Intercepted 2 | . 2 . Recyclers Shooed . | . . . Parts Field Recycled . | . . . Retrieved Matter . | . . . Parts Self-Destructed . | . . . Prevented . | . . . Kills | -11 -10 -10 ------- Run | Scr Mat Min Combat Hostiles Destroyed 12 | . 9 3 Guns 12 | . 9 3 Classes Destroyed 6 | . 4 2 Hauler 2 | . 2 . Watcher 1 | . 1 . Swarmer 2 | . 2 . Grunt 7 | . 7 . Sentry 2 | . . 2 Demolisher 1 | . . 1 Best Kill Streak 2 | . 2 2 Combat Bots Only 2 | . 2 2 Max Kills in Single Turn 1 | . 1 1 Gunslinging . | . . . Exploded . | . . . Melee . | . . . Uniques/NPCs Destroyed . | . . . Combat | -11 -10 -10 -------- Run | Scr Mat Min Damage Taken 1129 | . 451 678 Core 258 | . 88 170 Absorbed by Shields . | . . . Regen/Repaired (Parts) 150 | . 150 . Core Remaining (%) 100 | 100 . . Volleys Fired 54 | . 46 8 Largest 2 | . 2 2 Hottest 76 | . 70 76 Shots Fired 107 | . 91 16 Gun 106 | . 90 16 Cannon . | . . . Launcher 1 | . 1 . Special . | . . . Kinetic 58 | . 50 8 Thermal 48 | . 40 8 Explosive 1 | . 1 . Electromagnetic . | . . . Robot Hit Streak 15 | . 15 13 Robot Miss Streak 2 | . 2 2 Penetration Max . | . . . Secondary Targets 2 | . 1 1 Max Gunslinging Chain 1 | . 1 1 Shots Hit Robots 87 | . 74 13 Core Hits 30 | . 23 7 Critical Kills . | . . . Critical Parts Destroyed . | . . . Critical Strikes 2 | . 2 . Burn 2 | . 2 . Melee Attacks . | . . . Impact . | . . . Slashing . | . . . Piercing . | . . . Sneak Attacks . | . . . Combat Hostiles . | . . . Follow-up Attacks . | . . . Damage Inflicted 1172 | . 975 197 Guns 1129 | . 948 181 Cannons . | . . . Explosions . | . . . Melee . | . . . Ramming 43 | . 27 16 Kinetic 616 | . 528 88 Thermal 513 | . 420 93 Explosive . | . . . Electromagnetic . | . . . Impact . | . . . Slashing . | . . . Piercing . | . . . Highest Corruption . | . . . Average Corruption . | . . . Corruption Purged . | . . . Corruption Blocked . | . . . Overload Shots . | . . . Overflow Damage . | . . . Projectiles . | . . . Explosions . | . . . Melee . | . . . Knockbacks . | . . . Impact . | . . . Kinetic . | . . . Secondary . | . . . Self-Inflicted Damage . | . . . Shots . | . . . Rammed 10 | . 8 2 Targets Rammed 11 | . 9 2 Kicked . | . . . Crushed 1 | . 1 . Highest Temperature 147 | . 147 70 Average Temperature 44 | . 44 41 Received Heat Transfer 297 | . 225 72 Siege Activations . | . . . Robots Corrupted . | . . . Combat Hostiles . | . . . Parts Fried . | . . . Impact Corruptions . | . . . Robots Melted . | . . . Combat Hostiles . | . . . Parts Melted 4 | . 3 1 Heat Transferred 1591 | . 1332 259 Parts Sabotaged . | . . . Parts Stolen . | . . . Parts Stripped . | . . . Power Chain Reactions . | . . . Missiles Intercepted . | . . . Alert | -11 -10 -10 ------- Run | Scr Mat Min Peak Influence 311 | . 311 176 Initial 121 | . . 121 Average 111 | . 116 119 Maximum Alert Level 1 | . 1 . Low Security (%) 82 | 100 74 100 Level 1 17 | . 25 . Level 2 . | . . . Level 3 . | . . . Level 4 . | . . . Level 5 . | . . . High Security . | . . . Max Security . | . . . Squads Dispatched 3 | . 3 . Investigation 3 | . 3 . Extermination . | . . . Reinforcement . | . . . Assault . | . . . Garrison . | . . . Intercept . | . . . Searches Triggered . | . . . Construction Impeded . | . . . Haulers Reinforced . | . . . Active Scanning Responses . | . . . Cargo Convoy Interrupts . | . . . Stealth | -11 -10 -10 --------- Run | Scr Mat Min Distress Signals 4 | . 4 . Communications Jammed . | . . . Distress Signals . | . . . Times Spotted 46 | . 23 23 Peak Tracking Total 21 | . 4 21 Tactical Retreats 8 | . 8 . Traps | -11 -10 -10 ------- Run | Scr Mat Min Traps Triggered 2 | . 2 . Indirectly . | . . . Trap Hack Attempts . | . . . Triggered . | . . . Disarmed . | . . . Reprogrammed . | . . . Reused . | . . . Traps Extracted . | . . . Installed . | . . . Triggered . | . . . Machines | -11 -10 -10 ---------- Run | Scr Mat Min Machines Disabled . | . . . Max in Single Turn . | . . . Machines Sabotaged . | . . . Garrisons Compromised . | . . . Overloaded Fab Kills . | . . . Hacking | -11 -10 -10 --------- Run | Scr Mat Min Machines Accessed 10 | . 10 . Terminals 7 | . 7 . Fabricators . | . . . Repair Stations 1 | . 1 . Recycling Units 2 | . 2 . Scanalyzers . | . . . Garrison Access . | . . . Total Hacks 30 | . 30 . Successful 19 | . 19 . Failed 10 | . 10 . Catastrophic 1 | . 1 . Database Lockouts 1 | . 1 . Manual 16 | . 16 . Terminals 22 | . 22 . Fabricators . | . . . Repair Stations 6 | . 6 . Recycling Units 2 | . 2 . Scanalyzers . | . . . Garrison Access . | . . . Terminal Hacks 9 | . 9 . Robot Analysis 3 | . 3 . Prototype ID Bank 2 | . 2 . Recycling Unit Index 1 | . 1 . Alert Level 1 | . 1 . Locate Traps 1 | . 1 . Hauler Manifests 1 | . 1 . Fabricator Hacks . | . . . Repair Station Hacks 6 | . 6 . Scan Component 3 | . 3 . Repair 3 | . 3 . Recycling Unit Hacks . | . . . Scanalyzer . | . . . Garrison Access Hacks . | . . . Unauthorized Hacks 4 | . 4 . Terminals 2 | . 2 . Botnet 1 | . 1 . Operators 1 | . 1 . Fabricators . | . . . Repair Stations . | . . . Recycling Units 2 | . 2 . Tunnel 2 | . 2 . Scanalyzers . | . . . Garrison Access . | . . . Data Cores Recovered . | . . . Used . | . . . Hacking Detections 7 | . 7 . Full Trace Events 1 | . 1 . Feedback Events . | . . . Feedback Blocked . | . . . Robot Schematics Acquired . | . . . Robots Built . | . . . Authchips . | . . . Time . | . . . Total Robot Build Rating . | . . . Part Schematics Acquired . | . . . Parts Built . | . . . Authchips . | . . . Time . | . . . Total Part Build Rating . | . . . Parts Repaired 3 | . 3 . Time 78 | . 78 . Parts Recycled . | . . . Recycled Matter . | . . . Retrieved Matter . | . . . Retrieved Components . | . . . Parts Scanalyzed . | . . . Part Schematics Acquired . | . . . Parts Damaged . | . . . Bothacking | -11 -10 -10 ------------ Run | Scr Mat Min Used RIF Installer . | . . . Robots Hacked . | . . . Non-combat . | . . . Combat . | . . . Robot Hacks Applied . | . . . Relay Couplers Released . | . . . Fabnet Peak Effective % . | . . . Robots Rewired . | . . . Allies Hacked . | . . . Hacks Repelled . | . . . Allies | -11 -10 -10 -------- Run | Scr Mat Min Total Allies . | . . . Largest Group . | . . . Highest-Rated Group . | . . . Highest-Rated Ally . | . . . Total Orders . | . . . Ally Attacks . | . . . Total Damage . | . . . Kills . | . . . Allies Corrupted . | . . . Allies Melted . | . . . Intel | -11 -10 -10 ------- Run | Scr Mat Min Robot Analysis Total 3 | . 3 . Derelict Logs Recovered 2 | . . 2 Drone Launches . | . . . Drone Recoveries . | . . . Exploration | -11 -10 -10 ------------- Run | Scr Mat Min Turns Passed 1737 | 80 1166 491 Spaces Moved 876 | 42 552 282 Core 2 | 2 . . Treads 874 | 40 552 282 Legs . | . . . Wheels . | . . . Hover . | . . . Flight . | . . . Fastest Speed 50 | 50 160 160 Average Speed 159 | 154 160 160 Slowest Speed 160 | 160 160 160 Overloaded Moves . | . . . Propulsion Burnouts . | . . . Robots Hopped . | . . . Cave-ins Triggered . | . . . Exploration Rate (%) 41 | 4 73 46 Regions Visited 2 Branch Regions 1 Pre-discovered Areas 2 | . 2 . Known Exits Taken . | . . . Unknown Exits Taken 2 | 1 1 . Scrap Searched . | . . . Spaces Dug 10 | . 10 . Terrain Destroyed 10 | . 10 . Melee . | . . . Projectile . | . . . AOE 10 | . 10 . Terrain Rammed . | . . . Walls Destroyed . | . . . Machines Disabled . | . . . Actions | -11 -10 -10 --------- Run | Scr Mat Min Total 1109 | 56 743 310 Wait 97 | . 92 5 Move 874 | 41 551 282 Hop . | . . . Pick Up 29 | 9 17 3 Fast Attach 9 | 3 5 1 Attach 4 | 3 . 1 Detach . | . . . Swap 10 | . 8 2 Drop 21 | . 15 6 Fire 54 | . 46 8 Melee . | . . . Ram . | . . . Kick . | . . . Crush 11 | . 9 2 Escape Stasis . | . . . Rewire . | . . . Trap . | . . . Miscellaneous . | . . . Route ------- -11/Scrapyard -10/Materials (discovered 2 exits: [*Mat] / [*Min]) -10/Mines (discovered 1 exit: [*Mat]) History --------- Turn | Location | Event 26 | -11/Scrapyard | Discovered new exit (range 15) 81 | -11/Scrapyard | Entered Materials 324 | -10/Materials | Build established: Mutant 360 | -10/Materials | Discovered new exit (range 13) 649 | -10/Materials | Discovered new exit (range 16) 798 | -10/Materials | Central database locked down 1066 | -10/Materials | Repaired Assault Rifle 1094 | -10/Materials | Repaired Med. Laser 1121 | -10/Materials | Repaired Ion Engine 1247 | -10/Materials | Entered Mines 1347 | -10/Mines | Learned Materials emergency access door positions 1627 | -10/Mines | Discovered new exit (range 10) 1709 | -10/Mines | Assembled infested the area 1714 | -10/Mines | Assisted by a Guerilla fighting off Assembled 1724 | -10/Mines | Core integrity fell below 50% 1735 | -10/Mines | Core integrity fell below 20% 1738 | -10/Mines | Destroyed by D-53 Grenadier with Mini Grenade Launcher Last Messages --------------- 01728_ as-22294 destroyed. 01728_ as-94014 destroyed. 01728_ as-70286 destroyed. 01728_ as-94434 destroyed. 01728_ as-86822 destroyed. 01730_ Ion Engine destroyed. 01730_ as-86699 destroyed. 01730_ as-17740 destroyed. 01730_ as-65224 destroyed. 01730_ as-35682 destroyed. 01730_ as-44929 destroyed. 01730_ as-04733 destroyed. 01730_ as-50086 destroyed. 01732_ The unstable cave ceiling collapses. 01733_ Lgt. Treads destroyed. 01734_ The unstable cave ceiling collapses. 01734_ D-53 Grenadier destroyed. 01734_ T-07 Excavator destroyed. 01736_ The unstable cave ceiling collapses. 01736_ U-05 Engineer lays Concrete. Map ----- +----------------------------------------------------+ | ?????????????????????????# #??????????????? | | ?????????????????????????# ##### #??????????????? | | ?????????????????????????# #??## #??????????????? | | ?????????????????????????# #### #??????????????? | | ?????????????????????????# #??????????????? | | ?????????????????????????# ### ##?????????????? | | ?????????????????????????# #?# #?????????????? | | ?????????????????????????# #?# ##????????????? | | ?????????????????????????# #?## ####?????????? | | ?????????????????????????# #??# #?????????? | | ?????????????????????????# #??# #?????????? | | ?????????????????????????# ### #?????????? | | ????????????????????????## ####?????????? | | ????????????????????????# ##????????????? | | ????????????###????????## ####?????????????? | | ???????????## ????????# #????????????????? | | ??????????## ???????# ##???????????????? | | ??????????# ???????# u ##??????????????? | | ?????? ###" ###???## #??????????????? | | ?????? % #???# #??????????????? | | ???????? #### #??????????????? | | ??????????# =%%a* # # ##??????????????? | | ???????????# =% ##???????????????? | | ?????????????# = ! ##???????????????? | | ?????????????## d #?????#####??#### | | ?????????????# @ #????## #### # | | ??????????????# ##?#### < ## | | ??????????????## ###?## | | ???????????????# u##### # | | ???????????????#### # ## | | ??????????????????# ## ### ##? | | ??????????????????### # ##############?########?? | | ????????????????????######???????????????????????? | | ?????????????????????????????????????????????????? | | | | | | | | | | | | | | | | | | | | | | | | | | | | | | | | | +----------------------------------------------------+ Best States ------------- Heat Dissipation 25 Energy Generation 10 Energy Capacity 250 Matter Stores 300 Matter Capacity 300 Sight Range 16 Terrain Scan Density 10 Evasion (%) 40 Targeting Accuracy 5 Recoil Reduction 2 Item Schematics ----------------- None Robot Schematics ------------------ None Fabricated ------------ Nothing Alien Tech Used ----------------- None Achievements -------------- None Challenges ------------ None Game ------ Seed DataStealthNetwork Manual? 0 Play Time 00:11:38 Cumulative 484.8 hours Start 2022.06.16 @ 08:58:57 End 2022.06.19 @ 10:14:08 Sessions 6 Manual Loads 0 Difficulty Rogue Special Mode None Game No. 455 Rogue 455 Adventurer 0 Explorer 0 Win Type - Total 22 Types 13/2/4/2/0/0/0/1/0 Lore% 94 Gallery% 93 Achievement% 78 Wizard Run 0 Options --------- ASCII 0 Keyboard 0 Movement Arrows Keybinds 0 Fullscreen 1 Font 18/Smallcaps Map View 76x50 Tactical HUD 1 Map Filters NONE Filters NONE Steam 1 RUN: 88630949-46d2-4b3a-9e0b-56c48a78a0bf